[Event "MČR družstev mladších žáků 2024"]
[Site "Harrachov, Czech Republic"]
[Date "2024.06.14"]
[Round "2.8"]
[White "Artamonov Mikhail"]
[Black "Koupil Stepan"]
[Result "1/2-1/2"]
[TimeControl "25+10"]
[WhiteFideId "23732946"]
[BlackFideId "23742119"]
[WhiteElo "1515"]
[BlackElo "1423"]

1. e4 {[%clk 00:25:18]} {[%emt 00:00:02]} e5 {[%clk 00:25:18]} {[%emt
00:00:02]} 2. Nf3 {[%clk 00:25:27]} {[%emt 00:00:01]} Nc6 {[%clk 00:25:27]}
{[%emt 00:00:01]} 3. d4 {[%clk 00:25:35]} {[%emt 00:00:02]} exd4 {[%clk
00:25:33]} {[%emt 00:00:04]} 4. c3 {[%clk 00:25:42]} {[%emt 00:00:03]} d5
{[%clk 00:25:41]} {[%emt 00:00:01]} 5. exd5 {[%clk 00:25:50]} {[%emt 00:00:03]}
Qxd5 {[%clk 00:25:40]} {[%emt 00:00:11]} 6. cxd4 {[%clk 00:25:45]} {[%emt
00:00:14]} Bg4 {[%clk 00:25:12]} {[%emt 00:00:38]} 7. Be2 {[%clk 00:25:39]}
{[%emt 00:00:17]} Nf6 {[%clk 00:24:22]} {[%emt 00:01:00]} 8. Nc3 {[%clk
00:25:37]} {[%emt 00:00:12]} Bb4 {[%clk 00:23:50]} {[%emt 00:00:41]} 9. O-O
{[%clk 00:25:29]} {[%emt 00:00:19]} Bxc3 {[%clk 00:23:10]} {[%emt 00:00:50]} 10.
bxc3 {[%clk 00:25:36]} {[%emt 00:00:03]} O-O {[%clk 00:23:11]} {[%emt
00:00:09]} 11. c4 {[%clk 00:24:00]} {[%emt 00:01:47]} Qd7 {[%clk 00:20:42]}
{[%emt 00:02:39]} 12. d5 {[%clk 00:23:46]} {[%emt 00:00:23]} Bxf3 {[%clk
00:20:15]} {[%emt 00:00:38]} 13. Bxf3 {[%clk 00:23:38]} {[%emt 00:00:17]} Ne5
{[%clk 00:20:14]} {[%emt 00:00:08]} 14. Be2 {[%clk 00:23:46]} {[%emt 00:00:05]}
b5 {[%clk 00:17:21]} {[%emt 00:03:03]} 15. cxb5 {[%clk 00:22:56]} {[%emt
00:01:00]} Qxd5 {[%clk 00:16:31]} {[%emt 00:00:59]} 16. Qxd5 {[%clk 00:22:56]}
{[%emt 00:00:12]} Nxd5 {[%clk 00:16:39]} {[%emt 00:00:02]} 17. Bb2 {[%clk
00:22:16]} {[%emt 00:00:49]} Nd7 {[%clk 00:15:30]} {[%emt 00:01:15]} 18. Bf3
{[%clk 00:21:16]} {[%emt 00:01:14]} N7b6 {[%clk 00:15:12]} {[%emt 00:00:27]} 19.
Rfd1 {[%clk 00:20:40]} {[%emt 00:00:46]} Rad8 {[%clk 00:14:50]} {[%emt
00:00:31]} 20. Rac1 {[%clk 00:20:03]} {[%emt 00:00:46]} h6 {[%clk 00:13:43]}
{[%emt 00:01:21]} 21. a3 {[%clk 00:17:53]} {[%emt 00:02:20]} Rfe8 {[%clk
00:12:23]} {[%emt 00:01:30]} 22. g3 {[%clk 00:16:49]} {[%emt 00:01:14]} Re7
{[%clk 00:10:22]} {[%emt 00:02:09]} 23. Rd4 {[%clk 00:15:00]} {[%emt 00:01:59]}
Red7 {[%clk 00:08:22]} {[%emt 00:02:10]} 24. Rcd1 {[%clk 00:13:12]} {[%emt
00:01:59]} Ne7 {[%clk 00:06:24]} {[%emt 00:02:07]} 25. Rxd7 {[%clk 00:13:00]}
{[%emt 00:00:23]} Rxd7 {[%clk 00:06:28]} {[%emt 00:00:05]} 26. Rxd7 {[%clk
00:13:00]} {[%emt 00:00:11]} Nxd7 {[%clk 00:06:32]} {[%emt 00:00:06]} 27. Kf1
{[%clk 00:11:54]} {[%emt 00:01:16]} f6 {[%clk 00:05:41]} {[%emt 00:01:00]} 28.
a4 {[%clk 00:10:37]} {[%emt 00:01:29]} Kf7 {[%clk 00:04:22]} {[%emt 00:01:27]}
29. Ke1 {[%clk 00:09:32]} {[%emt 00:01:15]} Nc5 {[%clk 00:03:29]} {[%emt
00:01:01]} 30. Bd4 {[%clk 00:09:01]} {[%emt 00:00:44]} Nxa4 {[%clk 00:02:37]}
{[%emt 00:01:02]} 31. Bxa7 {[%clk 00:09:06]} {[%emt 00:00:05]} Nc3 {[%clk
00:02:01]} {[%emt 00:00:40]} 32. b6 {[%clk 00:09:07]} {[%emt 00:00:16]} cxb6
{[%clk 00:01:48]} {[%emt 00:00:23]} 33. Bxb6 {[%clk 00:09:10]} {[%emt
00:00:07]} 1/2-1/2



[ePGN "0.1;DGT LiveChess/2.2.6"]

[Event "MČR družstev mladších žáků 2024"]
[Site "Harrachov, Czech Republic"]
[Date "2024.06.14"]
[Round "2.9"]
[White "Sara David"]
[Black "Kolar Edvard"]
[Result "0-1"]
[TimeControl "25+10"]
[WhiteFideId "23746599"]
[BlackFideId "23746238"]
[WhiteElo "1379"]
[BlackElo "1553"]

1. e4 {[%clk 00:25:19]} {[%emt 00:05:49]} c5 {[%clk 00:25:19]} {[%emt
00:00:01]} 2. d4 {[%clk 00:25:28]} cxd4 {[%clk 00:25:23]} {[%emt 00:00:06]} 3.
c3 {[%clk 00:25:37]} g6 {[%clk 00:25:14]} {[%emt 00:00:20]} 4. cxd4 {[%clk
00:25:41]} {[%emt 00:00:06]} Bg7 {[%clk 00:25:19]} {[%emt 00:00:05]} 5. Nc3
{[%clk 00:25:47]} {[%emt 00:00:04]} d6 {[%clk 00:25:11]} {[%emt 00:00:17]} 6.
Bf4 {[%clk 00:25:55]} {[%emt 00:00:02]} Nc6 {[%clk 00:25:05]} {[%emt 00:00:16]}
7. Nf3 {[%clk 00:25:47]} {[%emt 00:00:18]} Nf6 {[%clk 00:24:32]} {[%emt
00:00:43]} 8. Bb5 {[%clk 00:25:36]} {[%emt 00:00:21]} O-O {[%clk 00:24:27]}
{[%emt 00:00:15]} 9. Bxc6 {[%clk 00:25:42]} {[%emt 00:00:04]} bxc6 {[%clk
00:24:34]} {[%emt 00:00:03]} 10. h3 {[%clk 00:25:42]} {[%emt 00:00:08]} Ba6
{[%clk 00:24:38]} {[%emt 00:00:06]} 11. Ne2 {[%clk 00:25:29]} {[%emt 00:00:24]}
Nxe4 {[%clk 00:24:20]} {[%emt 00:00:27]} 12. O-O {[%clk 00:25:25]} {[%emt
00:00:13]} Rb8 {[%clk 00:24:01]} {[%emt 00:00:30]} 13. b3 {[%clk 00:25:11]}
{[%emt 00:00:24]} c5 {[%clk 00:23:24]} {[%emt 00:00:47]} 14. Re1 {[%clk
00:24:54]} {[%emt 00:00:27]} Bxe2 {[%clk 00:20:41]} {[%emt 00:02:54]} 15. Qxe2
{[%clk 00:24:47]} {[%emt 00:00:17]} Nc3 {[%clk 00:20:40]} {[%emt 00:00:10]} 16.
Qc4 {[%clk 00:24:26]} {[%emt 00:00:31]} cxd4 {[%clk 00:20:24]} {[%emt
00:00:27]} 17. Nxd4 {[%clk 00:24:13]} {[%emt 00:00:23]} Bxd4 {[%clk 00:12:28]}
{[%emt 00:08:05]} 18. Qxd4 {[%clk 00:24:09]} {[%emt 00:00:12]} Nb5 {[%clk
00:12:35]} {[%emt 00:00:05]} 19. Qb2 {[%clk 00:24:16]} {[%emt 00:00:03]} e5
{[%clk 00:12:38]} {[%emt 00:00:08]} 20. Bh6 {[%clk 00:24:20]} {[%emt 00:00:05]}
Re8 {[%clk 00:12:32]} {[%emt 00:00:17]} 21. f4 {[%clk 00:22:13]} {[%emt
00:02:17]} Nd4 {[%clk 00:11:33]} {[%emt 00:01:10]} 22. Kh2 {[%clk 00:16:30]}
{[%emt 00:05:53]} Rc8 {[%clk 00:11:06]} {[%emt 00:00:37]} 23. Rac1 {[%clk
00:09:54]} {[%emt 00:06:46]} Rxc1 {[%clk 00:10:38]} {[%emt 00:00:39]} 24. Rxc1
{[%clk 00:09:52]} {[%emt 00:00:10]} Nf5 {[%clk 00:10:33]} {[%emt 00:00:15]} 25.
Bg5 {[%clk 00:09:41]} {[%emt 00:00:22]} f6 {[%clk 00:10:23]} {[%emt 00:00:20]}
26. g4 {[%clk 00:09:39]} {[%emt 00:00:12]} fxg5 {[%clk 00:09:27]} {[%emt
00:01:05]} 27. gxf5 {[%clk 00:09:45]} {[%emt 00:00:05]} gxf4 {[%clk 00:09:31]}
{[%emt 00:00:06]} 28. fxg6 {[%clk 00:09:49]} {[%emt 00:00:06]} hxg6 {[%clk
00:09:36]} {[%emt 00:00:05]} 29. Qc2 {[%clk 00:09:55]} {[%emt 00:00:04]} Qf6
{[%clk 00:09:13]} {[%emt 00:00:33]} 30. Rg1 {[%clk 00:09:47]} {[%emt 00:00:19]}
Kg7 {[%clk 00:08:59]} {[%emt 00:00:23]} 31. Qc6 {[%clk 00:08:13]} {[%emt
00:01:45]} Re7 {[%clk 00:08:36]} {[%emt 00:00:34]} 32. Rd1 {[%clk 00:08:14]}
{[%emt 00:00:08]} f3 {[%clk 00:06:36]} {[%emt 00:02:11]} 33. Rxd6 {[%clk
00:06:47]} {[%emt 00:01:37]} Qf4+ {[%clk 00:06:42]} {[%emt 00:00:04]} 34. Kh1
{[%clk 00:06:55]} {[%emt 00:00:01]} Qg3 {[%clk 00:06:38]} {[%emt 00:00:15]} 35.
Qc2 {[%clk 00:05:59]} {[%emt 00:01:05]} f2 {[%clk 00:06:16]} {[%emt 00:00:33]}
36. Qd1 {[%clk 00:04:55]} {[%emt 00:01:15]} Qxh3# {[%clk 00:06:15]} {[%emt
00:00:10]} 0-1



[ePGN "0.1;DGT LiveChess/2.2.6"]

[Event "MČR družstev mladších žáků 2024"]
[Site "Harrachov, Czech Republic"]
[Date "2024.06.15"]
[Round "3.1"]
[White "Velim Vojtech"]
[Black "Vancakova Veronika"]
[Result "1-0"]
[TimeControl "25+10"]
[WhiteFideId "23749407"]
[BlackFideId "23731907"]
[WhiteElo "1814"]
[BlackElo "1437"]

1. d4 {[%clk 00:24:28]} {[%emt 00:00:51]} Nf6 {[%clk 00:25:19]} {[%emt
00:00:01]} 2. c4 {[%clk 00:24:38]} g6 {[%clk 00:25:28]} {[%emt 00:00:02]} 3.
Nc3 {[%clk 00:24:43]} {[%emt 00:00:05]} Bg7 {[%clk 00:25:36]} {[%emt 00:00:01]}
4. e4 {[%clk 00:24:52]} {[%emt 00:00:01]} d6 {[%clk 00:25:43]} {[%emt
00:00:03]} 5. Nf3 {[%clk 00:25:01]} O-O {[%clk 00:25:52]} {[%emt 00:00:02]} 6.
Be2 {[%clk 00:25:10]} Nbd7 {[%clk 00:25:59]} {[%emt 00:00:04]} 7. O-O {[%clk
00:25:13]} {[%emt 00:00:06]} e5 {[%clk 00:26:05]} {[%emt 00:00:04]} 8. dxe5
{[%clk 00:25:21]} {[%emt 00:00:03]} dxe5 {[%clk 00:25:58]} {[%emt 00:00:17]} 9.
Qc2 {[%clk 00:25:30]} c6 {[%clk 00:25:00]} {[%emt 00:01:08]} 10. Rd1 {[%clk
00:25:35]} {[%emt 00:00:05]} Qc7 {[%clk 00:24:38]} {[%emt 00:00:31]} 11. Bg5
{[%clk 00:25:15]} {[%emt 00:00:29]} h6 {[%clk 00:24:37]} {[%emt 00:00:12]} 12.
Bxf6 {[%clk 00:25:06]} {[%emt 00:00:19]} Nxf6 {[%clk 00:23:31]} {[%emt
00:01:16]} 13. Rd2 {[%clk 00:24:17]} {[%emt 00:01:00]} Be6 {[%clk 00:21:46]}
{[%emt 00:01:55]} 14. Rad1 {[%clk 00:24:13]} {[%emt 00:00:14]} Rae8 {[%clk
00:18:08]} {[%emt 00:03:48]} 15. Rd6 {[%clk 00:22:51]} {[%emt 00:01:32]} Bc8
{[%clk 00:17:07]} {[%emt 00:01:11]} 16. b4 {[%clk 00:21:22]} {[%emt 00:01:39]}
Re6 {[%clk 00:07:00]} {[%emt 00:10:17]} 17. c5 {[%clk 00:20:11]} {[%emt
00:01:21]} Ne8 {[%clk 00:06:35]} {[%emt 00:00:35]} 18. R6d2 {[%clk 00:20:15]}
{[%emt 00:00:06]} Kh7 {[%clk 00:03:49]} {[%emt 00:02:56]} 19. Bc4 {[%clk
00:18:54]} {[%emt 00:01:31]} Re7 {[%clk 00:03:13]} {[%emt 00:00:46]} 20. b5
{[%clk 00:17:26]} {[%emt 00:01:38]} f5 {[%clk 00:01:36]} {[%emt 00:01:48]} 21.
bxc6 {[%clk 00:16:42]} {[%emt 00:00:55]} bxc6 {[%clk 00:00:57]} {[%emt
00:00:49]} 22. Rd6 {[%clk 00:16:14]} {[%emt 00:00:37]} Rd7 {[%clk 00:00:34]}
{[%emt 00:00:33]} 23. Rxd7 {[%clk 00:15:08]} {[%emt 00:01:17]} Bxd7 {[%clk
00:00:42]} {[%emt 00:00:02]} 24. Qd2 {[%clk 00:13:01]} {[%emt 00:02:17]} Bc8
{[%clk 00:00:46]} {[%emt 00:00:06]} 25. Qd3 {[%clk 00:10:25]} {[%emt 00:02:46]}
Bf6 {[%clk 00:00:25]} {[%emt 00:00:31]} 26. Ba6 {[%clk 00:07:56]} {[%emt
00:02:39]} Bxa6 {[%clk 00:00:22]} {[%emt 00:00:14]} 27. Qxa6 {[%clk 00:08:05]}
{[%emt 00:00:01]} Rf7 {[%clk 00:00:18]} {[%emt 00:00:13]} 28. exf5 {[%clk
00:07:25]} {[%emt 00:00:50]} gxf5 {[%clk 00:00:27]} {[%emt 00:00:01]} 29. Qd3
{[%clk 00:07:34]} {[%emt 00:00:01]} e4 {[%clk 00:00:23]} {[%emt 00:00:14]} 30.
Nxe4 {[%clk 00:07:42]} {[%emt 00:00:01]} fxe4 {[%clk 00:00:26]} {[%emt
00:00:07]} 31. Qxe4+ {[%clk 00:07:51]} {[%emt 00:00:01]} Kg7 {[%clk 00:00:19]}
{[%emt 00:00:16]} 32. Qxe8 {[%clk 00:07:59]} {[%emt 00:00:02]} Re7 {[%clk
00:00:17]} {[%emt 00:00:12]} 33. Qh5 {[%clk 00:07:44]} {[%emt 00:00:24]} Qf4
{[%clk 00:00:14]} {[%emt 00:00:14]} 34. h3 {[%clk 00:07:36]} {[%emt 00:00:18]}
Qc4 {[%clk 00:00:13]} {[%emt 00:00:12]} 35. Qg4+ {[%clk 00:07:14]} {[%emt
00:00:32]} Qxg4 {[%clk 00:00:21]} {[%emt 00:00:01]} 36. hxg4 {[%clk 00:07:23]}
Rc7 {[%emt 00:00:18]} 37. Nd4 {[%clk 00:06:37]} {[%emt 00:00:55]} Kf7 {[%clk
00:00:12]} {[%emt 00:00:13]} 38. Nf5 {[%clk 00:06:41]} {[%emt 00:00:06]} Kg6
{[%clk 00:00:17]} {[%emt 00:00:05]} 39. Rd6 {[%clk 00:06:38]} {[%emt 00:00:13]}
Kg5 {[%clk 00:00:21]} {[%emt 00:00:07]} 40. f4+ {[%clk 00:05:56]} {[%emt
00:00:52]} Kg6 {[%clk 00:00:19]} {[%emt 00:00:12]} 41. Nxh6 {[%clk 00:06:02]}
{[%emt 00:00:04]} Kg7 {[%clk 00:00:21]} {[%emt 00:00:08]} 42. Nf5+ {[%clk
00:06:04]} {[%emt 00:00:08]} Kf7 {[%clk 00:00:29]} {[%emt 00:00:02]} 43. g5
{[%clk 00:05:53]} {[%emt 00:00:21]} Be7 {[%clk 00:00:18]} {[%emt 00:00:21]} 44.
Nxe7 {[%clk 00:05:51]} {[%emt 00:00:13]} Kxe7 {[%clk 00:00:27]} {[%emt
00:00:02]} 45. f5 {[%clk 00:05:57]} {[%emt 00:00:03]} Kf7 {[%clk 00:00:35]}
{[%emt 00:00:02]} 46. Kh2 {[%clk 00:06:01]} {[%emt 00:00:06]} Kg7 {[%clk
00:00:40]} {[%emt 00:00:05]} 47. Kg3 {[%clk 00:06:05]} {[%emt 00:00:06]} Kf7
{[%clk 00:00:46]} {[%emt 00:00:04]} 48. g6+ {[%clk 00:06:09]} {[%emt 00:00:06]}
Kg7 {[%clk 00:00:54]} {[%emt 00:00:03]} 49. Kg4 {[%clk 00:06:18]} 1-0



[ePGN "0.1;DGT LiveChess/2.2.6"]

[Event "MČR družstev mladších žáků 2024"]
[Site "Harrachov, Czech Republic"]
[Date "2024.06.15"]
[Round "3.10"]
[White "Vratny Vojtech"]
[Black "Gernert Tomas"]
[Result "1-0"]
[TimeControl "25+10"]
[WhiteFideId "23753692"]
[BlackFideId "23750219"]
[WhiteElo "1208"]
[BlackElo "1409"]

1. Nf3 {[%clk 00:25:18]} d5 {[%clk 00:25:17]} {[%emt 00:00:04]} 2. g3 {[%clk
00:25:26]} {[%emt 00:00:02]} Bf5 {[%clk 00:25:14]} {[%emt 00:00:13]} 3. Bg2
{[%clk 00:25:31]} {[%emt 00:00:05]} Nf6 {[%clk 00:25:17]} {[%emt 00:00:07]} 4.
O-O {[%clk 00:25:35]} {[%emt 00:00:06]} e6 {[%clk 00:25:20]} {[%emt 00:00:07]}
5. d3 {[%clk 00:25:39]} {[%emt 00:00:06]} Be7 {[%clk 00:25:00]} {[%emt
00:00:30]} 6. Nbd2 {[%clk 00:25:17]} {[%emt 00:00:31]} O-O {[%clk 00:24:55]}
{[%emt 00:00:16]} 7. c4 {[%clk 00:25:11]} {[%emt 00:00:16]} c5 {[%clk
00:23:10]} {[%emt 00:01:55]} 8. a3 {[%clk 00:23:33]} {[%emt 00:01:48]} Nc6
{[%clk 00:22:51]} {[%emt 00:00:29]} 9. Re1 {[%clk 00:19:51]} {[%emt 00:03:51]}
d4 {[%clk 00:20:02]} {[%emt 00:03:00]} 10. Nf1 {[%clk 00:18:46]} {[%emt
00:01:14]} e5 {[%clk 00:18:15]} {[%emt 00:01:58]} 11. Nh4 {[%clk 00:16:48]}
{[%emt 00:02:08]} Bg4 {[%clk 00:17:20]} {[%emt 00:01:05]} 12. h3 {[%clk
00:15:57]} {[%emt 00:01:01]} Bh5 {[%clk 00:16:59]} {[%emt 00:00:31]} 13. g4
{[%clk 00:14:39]} {[%emt 00:01:29]} Bg6 {[%clk 00:12:37]} {[%emt 00:04:32]} 14.
Nxg6 {[%clk 00:14:27]} {[%emt 00:00:22]} fxg6 {[%clk 00:12:37]} {[%emt
00:00:09]} 15. Ng3 {[%clk 00:13:46]} {[%emt 00:00:50]} h5 {[%clk 00:09:41]}
{[%emt 00:03:07]} 16. gxh5 {[%clk 00:13:20]} {[%emt 00:00:36]} Nxh5 {[%clk
00:09:32]} {[%emt 00:00:20]} 17. Bd5+ {[%clk 00:12:38]} {[%emt 00:00:52]} Kh7
{[%clk 00:09:11]} {[%emt 00:00:31]} 18. Nxh5 {[%clk 00:12:33]} {[%emt
00:00:15]} gxh5 {[%clk 00:09:19]} {[%emt 00:00:02]} 19. e3 {[%clk 00:11:55]}
{[%emt 00:00:46]} g6 {[%clk 00:09:02]} {[%emt 00:00:29]} 20. Be4 {[%clk
00:09:23]} {[%emt 00:02:40]} Kg7 {[%clk 00:08:45]} {[%emt 00:00:30]} 21. exd4
{[%clk 00:08:14]} {[%emt 00:01:17]} exd4 {[%clk 00:07:34]} {[%emt 00:01:21]} 22.
Qd2 {[%clk 00:06:57]} {[%emt 00:01:22]} g5 {[%clk 00:04:33]} {[%emt 00:03:17]}
23. Qe2 {[%clk 00:06:07]} {[%emt 00:00:57]} Qe8 {[%clk 00:03:25]} {[%emt
00:01:21]} 24. Bxc6 {[%clk 00:05:15]} {[%emt 00:01:02]} bxc6 {[%clk 00:03:17]}
{[%emt 00:00:19]} 25. Qxe7+ {[%clk 00:05:17]} {[%emt 00:00:07]} Qxe7 {[%clk
00:03:24]} {[%emt 00:00:03]} 26. Rxe7+ {[%clk 00:05:25]} {[%emt 00:00:02]} Kf6
{[%clk 00:03:20]} {[%emt 00:00:14]} 27. Rc7 {[%clk 00:05:08]} {[%emt 00:00:27]}
Rfc8 {[%clk 00:02:39]} {[%emt 00:00:51]} 28. Rxc8 {[%clk 00:05:09]} {[%emt
00:00:09]} Rxc8 {[%clk 00:02:47]} {[%emt 00:00:02]} 29. Bd2 {[%clk 00:05:12]}
{[%emt 00:00:07]} Rb8 {[%clk 00:02:05]} {[%emt 00:00:53]} 30. b4 {[%clk
00:05:11]} {[%emt 00:00:11]} cxb4 {[%clk 00:00:11]} {[%emt 00:02:05]} 31. axb4
{[%clk 00:05:16]} {[%emt 00:00:04]} Rb7 {[%clk 00:00:20]} 32. Ra6 {[%clk
00:05:22]} {[%emt 00:00:04]} Rc7 {[%clk 00:00:26]} {[%emt 00:00:04]} 33. b5
{[%clk 00:05:27]} {[%emt 00:00:05]} Kf5 {[%clk 00:00:11]} {[%emt 00:00:26]} 34.
Rxc6 {[%clk 00:05:32]} {[%emt 00:00:04]} Re7 {[%clk 00:00:14]} {[%emt
00:00:08]} 35. Rc5+ {[%clk 00:05:33]} {[%emt 00:00:09]} 1-0



[ePGN "0.1;DGT LiveChess/2.2.6"]

[Event "MČR družstev mladších žáků 2024"]
[Site "Harrachov, Czech Republic"]
[Date "2024.06.15"]
[Round "3.11"]
[White "Kusova Nikola"]
[Black "Melicharova Veronika"]
[Result "1-0"]
[TimeControl "25+10"]
[WhiteFideId "23733705"]
[BlackFideId "23749695"]
[WhiteElo "1353"]
[BlackElo "1003"]

1. e4 {[%clk 00:25:19]} {[%emt 00:00:01]} e5 {[%clk 00:25:18]} {[%emt
00:00:02]} 2. Nc3 {[%clk 00:25:26]} {[%emt 00:00:03]} Nc6 {[%clk 00:25:26]}
{[%emt 00:00:02]} 3. Bc4 {[%clk 00:25:34]} {[%emt 00:00:02]} Nf6 {[%clk
00:25:34]} {[%emt 00:00:02]} 4. d3 {[%clk 00:25:42]} {[%emt 00:00:02]} Bc5
{[%clk 00:25:41]} {[%emt 00:00:03]} 5. f4 {[%clk 00:25:50]} {[%emt 00:00:02]}
O-O {[%clk 00:25:44]} {[%emt 00:00:07]} 6. Na4 {[%clk 00:25:11]} {[%emt
00:00:49]} Be7 {[%clk 00:25:11]} {[%emt 00:00:42]} 7. Nf3 {[%clk 00:25:14]}
{[%emt 00:00:07]} exf4 {[%clk 00:24:59]} {[%emt 00:00:22]} 8. Bxf4 {[%clk
00:25:21]} {[%emt 00:00:03]} Na5 {[%clk 00:24:30]} {[%emt 00:00:40]} 9. Bb3
{[%clk 00:24:41]} {[%emt 00:00:49]} Nxb3 {[%clk 00:24:23]} {[%emt 00:00:17]} 10.
axb3 {[%clk 00:24:49]} {[%emt 00:00:02]} b5 {[%clk 00:17:26]} {[%emt 00:07:07]}
11. Nc3 {[%clk 00:24:44]} {[%emt 00:00:14]} Bb4 {[%clk 00:17:15]} {[%emt
00:00:20]} 12. O-O {[%clk 00:22:12]} {[%emt 00:02:42]} c6 {[%clk 00:16:59]}
{[%emt 00:00:27]} 13. Qe2 {[%clk 00:18:03]} {[%emt 00:04:19]} Re8 {[%clk
00:16:00]} {[%emt 00:01:09]} 14. Kh1 {[%clk 00:12:18]} {[%emt 00:05:55]} Bxc3
{[%clk 00:15:24]} {[%emt 00:00:46]} 15. bxc3 {[%clk 00:12:25]} {[%emt
00:00:03]} Nd5 {[%clk 00:15:25]} {[%emt 00:00:09]} 16. Bd2 {[%clk 00:11:13]}
{[%emt 00:01:22]} Qc7 {[%clk 00:15:01]} {[%emt 00:00:34]} 17. Qf2 {[%clk
00:10:09]} {[%emt 00:01:13]} Nf6 {[%clk 00:14:08]} {[%emt 00:01:03]} 18. Nd4
{[%clk 00:07:47]} {[%emt 00:02:32]} Ng4 {[%clk 00:12:45]} {[%emt 00:01:32]} 19.
Qxf7+ {[%clk 00:07:50]} {[%emt 00:00:07]} Kh8 {[%clk 00:12:51]} {[%emt
00:00:04]} 20. Qf8+ {[%emt 00:01:37]} 1-0



[ePGN "0.1;DGT LiveChess/2.2.6"]